[Event "AI Cup Div-3 2023"]
[Site "Online"]
[Date "2023.09.25"]
[Round "1.2"]
[White "Demchenko, Anton"]
[Black "Meier, Georg"]
[Result "0-1"]
[Annotator "ChessBase"]
[ECO "C00"]
[WhiteElo "2608"]
[BlackElo "2628"]
[PlyCount "124"]
[EventDate "2023.09.18"]
[EventType "k.o."]
[EventCountry "NET"]
[SourceTitle "playchess.com"]
[Source "ChessBase"]
[SourceQuality "1"]
[TimeControl "900+3"]

1. e4 {[%emt 0:00:04]} e6 {[%emt 0:00:04]} 2. d3 {[%emt 0:00:03]} d5 {[%emt 0:00:02]} 3. Nd2 {[%emt 0:00:00]} Nf6 {[%emt 0:00:04]} 4. e5 {[%emt 0:00:01]} Nfd7 {[%emt 0:00:01]} 5. f4 {[%emt 0:00:01]} c5 {[%emt 0:00:02]} 6. Ndf3 {[%emt 0:00:00]} b5 {[%emt 0:00:08]} 7. g3 {[%emt 0:00:08]} Nc6 {[%emt 0:00:03]} 8. Bg2 {[%emt 0:00:05]} Be7 {[%emt 0:00:06]} 9. Nh3 {[%emt 0:00:00]} Nb6 {[%emt 0:00:29]} 10. O-O {[%emt 0:00:03]} Qd7 {[%emt 0:00:04]} 11. Qe2 {[%emt 0:00:22]} Bb7 {[%emt 0:00:06]} 12. Bd2 {[%emt 0:00:21]} h6 {[%emt 0:00:52]} 13. c3 {[%emt 0:00:48]} d4 {[%emt 0:00:35]} 14. Nf2 {[%emt 0:01:08]} Rd8 {[%emt 0:01:27]} 15. cxd4 {[%emt 0:03:42]} Nxd4 {[%emt 0:00:04]} 16. Nxd4 {[%emt 0:00:01]} Bxg2 {[%emt 0:00:00]} 17. Kxg2 {[%emt 0:00:09]} Qxd4 {[%emt 0:00:03]} 18. Be3 {[%emt 0:00:46]} Qd5+ {[%emt 0:00:17]} 19. Kg1 {[%emt 0:00:18]} O-O {[%emt 0:00:06]} 20. Rfd1 {[%emt 0:00:05]} c4 {[%emt 0:02:26]} 21. dxc4 {[%emt 0:00:39]} Qxc4 {[%emt 0:00:01]} 22. Kf1 {[%emt 0:01:57]} Rxd1+ {[%emt 0:00:21]} 23. Rxd1 {[%emt 0:00:02]} Nd5 {[%emt 0:00:44]} 24. Bxa7 {[%emt 0:00:30]} Qxa2 {[%emt 0:02:04]} 25. Bd4 {[%emt 0:00:03]} Qa4 {[%emt 0:00:03]} 26. Ne4 {[%emt 0:00:40]} Rc8 {[%emt 0:00:02]} 27. Nc3 {[%emt 0:02:18]} Nxc3 {[%emt 0:00:03]} 28. bxc3 {[%emt 0:00:02]} Qb3 {[%emt 0:03:04]} 29. Ra1 {[%emt 0:00:38]} b4 {[%emt 0:00:23]} 30. cxb4 {[%emt 0:00:03]} Bxb4 {[%emt 0:00:24]} 31. Bf2 {[%emt 0:00:18]} Rc2 {[%emt 0:00:47]} 32. Qe4 {[%emt 0:01:03]} Rxf2+ {[%emt 0:01:08]} 33. Kxf2 {[%emt 0:00:01]} Qb2+ {[%emt 0:00:00]} 34. Kf3 {[%emt 0:00:02]} Qxa1 {[%emt 0:00:02]} 35. Qxb4 {[%emt 0:00:00]} Qh1+ {[%emt 0:00:01]} 36. Ke3 {[%emt 0:00:15]} Qxh2 {[%emt 0:00:09]} 37. Qb8+ {[%emt 0:00:01]} Kh7 {[%emt 0:00:01]} 38. Qb1+ {[%emt 0:00:01]} g6 {[%emt 0:00:00]} 39. Kf3 {[%emt 0:00:01]} Kg7 {[%emt 0:00:11]} 40. Qd3 {[%emt 0:00:04]} Qh3 {[%emt 0:00:10]} 41. Qd8 {[%emt 0:00:04]} Qh5+ {[%emt 0:00:11]} 42. Kf2 {[%emt 0:00:14]} Qf5 {[%emt 0:00:00]} 43. Kf3 {[%emt 0:00:03]} g5 {[%emt 0:00:02]} 44. Qe7 {[%emt 0:00:03]} gxf4 {[%emt 0:00:13]} 45. gxf4 {[%emt 0:00:00]} h5 {[%emt 0:00:01]} 46. Qh4 {[%emt 0:00:04]} Kh7 {[%emt 0:00:01]} 47. Ke3 {[%emt 0:00:03]} Qg4 {[%emt 0:00:05]} 48. Qf6 {[%emt 0:00:02]} Qg3+ {[%emt 0:00:01]} 49. Ke2 {[%emt 0:00:05]} Qg6 {[%emt 0:00:01]} 50. Qe7 {[%emt 0:00:03]} Qe4+ {[%emt 0:00:01]} 51. Kd1 {[%emt 0:00:02]} Qxf4 {[%emt 0:00:02]} 52. Qd6 {[%emt 0:00:04]} h4 {[%emt 0:00:03]} 53. Ke2 {[%emt 0:00:01]} Qg4+ {[%emt 0:00:04]} 54. Kf2 {[%emt 0:00:01]} h3 {[%emt 0:00:01]} 55. Qf8 {[%emt 0:00:02]} Qg2+ {[%emt 0:00:03]} 56. Ke3 {[%emt 0:00:02]} Qg6 {[%emt 0:00:04]} 57. Qa8 {[%emt 0:00:08]} h2 {[%emt 0:00:01]} 58. Qf3 {[%emt 0:00:03]} Kg7 {[%emt 0:00:06]} 59. Ke2 {[%emt 0:00:09]} Qg5 {[%emt 0:00:01]} 60. Qh3 {[%emt 0:00:03]} Qxe5+ {[%emt 0:00:02]} 61. Kd2 {[%emt 0:00:01]} Qd5+ {[%emt 0:00:01]} 62. Ke3 {[%emt 0:00:01]} h1=Q {[%emt 0:00:01]} 0-1

[Event "AI Cup Div-3 2023"]
[Site "Online"]
[Date "2023.09.25"]
[Round "1.2"]
[White "Paravyan, David"]
[Black "Radjabov, Teimour"]
[Result "1/2-1/2"]
[Annotator "TA"]
[ECO "C67"]
[WhiteElo "2599"]
[BlackElo "2745"]
[PlyCount "220"]
[EventDate "2023.09.18"]
[EventType "k.o."]
[EventCountry "NET"]
[SourceTitle "playchess.com"]
[Source "ChessBase"]
[SourceQuality "1"]
[TimeControl "900+3"]

{[%evp 29,220,18,15,14,16,10,17,5,19,8,13,11,29,22,22,22,77,88,81,89,124,102,104,104,191,185,183,165,167,115,170,133,144,143,152,147,147,147,150,143,147,123,163,161,150,162,170,126,154,149,155,155,153,155,155,155,147,147,147,140,140,140,140,140,140,140,164,164,164,126,110,100,100,100,100,100,100,100,100,100,100,100,108,100,126,100,100,100,100,100,101,92,74,51,51,51,462,96,96,51,51,51,51,51,51,51,51,51,52,52,66,51,51,51,52,52,52,51,89,89,89,89,89,89,89,89,89,89,89,0,89,89,89,89,89,89,89,89,89,89,89,89,89,89,89,89,96,89,89,0,89,89,89,89,89,89,89,89,89,89,89,89,96,96,96,0,89,0,89,89,89,51,133,51,90,51,133,51,56,56,56,8,8,8,8,8,8,8,8,0,8,-8,-8]} 1. e4 {[%emt 0:00:04]} e5 {[%emt 0:00:09]} 2. Nf3 {[%emt 0:00:01]} Nc6 {[%emt 0:00:01]} 3. Bb5 {[%emt 0:00:01]} Nf6 {[%emt 0:00:02]} 4. O-O {[%emt 0:00:03]} Nxe4 {[%emt 0:00:01]} 5. Re1 {[%emt 0:00:01]} Nd6 {[%emt 0:00:01]} 6. Nxe5 {[%emt 0:00:00]} Be7 {[%emt 0:00:01]} 7. Bf1 {[%emt 0:00:01]} Nxe5 {[%emt 0:00:01]} 8. Rxe5 {[%emt 0:00:00]} O-O {[%emt 0:00:01]} 9. d4 {[%emt 0:00:01]} Bf6 {[%emt 0:00:02]} 10. Re1 {[%emt 0:00:01]} Re8 {[%emt 0:00:00]} 11. c3 {[%emt 0:00:02]} Rxe1 {[%emt 0:00:05]} 12. Qxe1 {[%emt 0:00:00]} Ne8 {[%emt 0:00:01]} 13. Bf4 {[%emt 0:00:03]} d5 {[%emt 0:00:04]} 14. Nd2 {[%emt 0:00:01]} g6 {[%emt 0:00:04]} 15. Qe2 {[%emt 0:00:11]} c6 {[%emt 0:00:05]} 16. Re1 {[%emt 0:00:05]} Ng7 {[%emt 0:00:02]} 17. h3 {[%emt 0:00:13]} Bf5 {[%emt 0:00:09]} 18. g4 {[%emt 0:00:11]} Be6 {[%emt 0:00:03]} (18... Ne6 19. Bg3 Bc2 20. Nc4 $14) 19. Nb3 {[%emt 0:00:43]} b6 {[%emt 0:00:04]} 20. Nc1 {[%emt 0:00:01]} Bg5 {[%emt 0:00:13]} 21. Qe3 {[%emt 0:00:22]} Bxf4 {[%emt 0:00:10]} 22. Qxf4 {[%emt 0:00:01]} h5 {[%emt 0:00:00]} (22... Rc8 $11) 23. Nd3 $16 {[%emt 0:00:35]} hxg4 {[%emt 0:00:08]} 24. hxg4 {[%emt 0:00:00]} f6 {[%emt 0:00:52]} 25. Qh6 {[%emt 0:01:47]} Bxg4 {[%emt 0:01:38]} 26. Nf4 {[%emt 0:00:30]} (26. Qxg6 Bf5 27. Qg3 Kf7 $14) 26... Bf5 {[%emt 0:00:18]} (26... Qd7 $16 {was necessary.}) 27. Nxg6 $18 {[%emt 0:00:18]} Bxg6 {[%emt 0:00:06]} 28. Qxg6 {[%emt 0:00:00]} Qd7 {[%emt 0:02:00]} 29. Qxf6 {[%emt 0:03:00]} (29. Bd3 $18 {And now Qh7+ would win.} Re8 30. Rxe8+ Qxe8 31. Qxf6) 29... Rf8 {[%emt 0:00:10]} (29... Re8 $16 {might work better.} 30. Rxe8+ Nxe8) 30. Qg6 {[%emt 0:00:01]} Rf4 {[%emt 0:00:38]} 31. Bg2 {[%emt 0:01:20]} Rg4 {[%emt 0:01:54]} 32. Re8+ $1 {[%emt 0:00:04]} Qxe8 {[%emt 0:00:01]} 33. Qxg4 {[%emt 0:00:00]} Qe1+ {[%emt 0:01:04]} 34. Bf1 {[%emt 0:00:09]} Qd2 {[%emt 0:00:01]} 35. Qc8+ {[%emt 0:00:22]} Kh7 {[%emt 0:00:02]} 36. Qh3+ {[%emt 0:00:32]} ({Inferior is} 36. Qxc6 Qg5+ 37. Bg2 Qc1+ 38. Bf1 Qg5+ 39. Bg2 Qc1+ 40. Bf1 Qg5+ $11) 36... Kg8 {[%emt 0:00:14]} 37. Bd3 {[%emt 0:00:41]} Qg5+ {[%emt 0:01:02]} 38. Kh2 {[%emt 0:00:12]} Nh5 {[%emt 0:00:12]} 39. Qc8+ {[%emt 0:02:04]} Kg7 {[%emt 0:00:05]} 40. Qd7+ {[%emt 0:00:13]} ({Not} 40. Qxc6 Qh4+ 41. Kg1 Qg4+ 42. Kh2 Qh4+ 43. Kg1 Qg4+ 44. Kh2 Qh4+ $11) 40... Kf8 {[%emt 0:00:05]} 41. Qf5+ {[%emt 0:00:15]} ({Worse is} 41. Qxa7 Qh4+ 42. Kg1 Qg4+ 43. Kh2 Qh4+ 44. Kg1 Qg4+ 45. Kh2 Qh4+ $11) 41... Qxf5 {[%emt 0:00:04]} 42. Bxf5 {[%emt 0:00:00]} Ke7 {[%emt 0:00:18]} 43. Kh3 {[%emt 0:00:15]} Kf6 {[%emt 0:00:13]} 44. Kg4 {[%emt 0:00:03]} Ng7 {[%emt 0:00:01]} 45. Bd7 {[%emt 0:00:04]} c5 {[%emt 0:00:01]} 46. Kf4 {[%emt 0:01:12]} cxd4 {[%emt 0:00:05]} 47. cxd4 {[%emt 0:00:00]} Nh5+ {[%emt 0:00:03]} 48. Kg4 {[%emt 0:00:11]} Ng7 {[%emt 0:00:01]} 49. Kf3 {[%emt 0:00:46]} Ke7 {[%emt 0:01:12]} 50. Bg4 {[%emt 0:00:20]} Ne8 {[%emt 0:00:02]} 51. Kf4 {[%emt 0:00:14]} Kf6 {[%emt 0:00:00]} 52. Bf3 {[%emt 0:00:08]} Nc7 {[%emt 0:00:03]} 53. Ke3 {[%emt 0:00:02]} Ke6 {[%emt 0:00:22]} 54. Bg4+ {[%emt 0:00:01]} Kf6 {[%emt 0:00:02]} 55. Bh3 {[%emt 0:00:09]} Nb5 {[%emt 0:00:06]} 56. Bg2 {[%emt 0:00:02]} Ke6 {[%emt 0:00:01]} 57. f4 {[%emt 0:00:08]} Nd6 {[%emt 0:00:02]} 58. Bh3+ {[%emt 0:00:02]} Kf6 {[%emt 0:00:01]} 59. Kd3 {[%emt 0:00:01]} a5 {[%emt 0:00:10]} 60. Bd7 {[%emt 0:00:02]} Nc4 {[%emt 0:00:10]} 61. b3 {[%emt 0:00:03]} Nd6 {[%emt 0:00:01]} 62. Bg4 {[%emt 0:00:06]} Kg6 $2 {[%emt 0:00:15][%mdl 8192]} (62... Nf5 $14) 63. Bf3 $2 {[%emt 0:00:02]} (63. Be6 $18 {is the precise move to win.} Nb5 64. Bxd5) 63... Kf5 $16 {[%emt 0:00:01]} 64. Ke3 {[%emt 0:00:05]} Ke6 {[%emt 0:00:01]} 65. Bg4+ {[%emt 0:00:01]} Kf6 {[%emt 0:00:00]} 66. Bd7 {[%emt 0:00:03]} Ke7 {[%emt 0:00:01]} 67. Bh3 {[%emt 0:00:04]} Kf6 {[%emt 0:00:01]} 68. Bg4 {[%emt 0:00:01]} Nb5 {[%emt 0:00:08]} 69. Bf3 {[%emt 0:00:07]} Ke6 {[%emt 0:00:03]} 70. Kd3 {[%emt 0:00:07]} Nd6 {[%emt 0:00:09]} 71. a3 {[%emt 0:00:02]} Nb5 {[%emt 0:00:08]} 72. a4 {[%emt 0:00:01]} Nd6 {[%emt 0:00:02]} 73. Kc3 {[%emt 0:00:03]} Kf5 {[%emt 0:00:08]} 74. Bxd5 {[%emt 0:00:02]} Kxf4 {[%emt 0:00:00]} 75. Kd3 {[%emt 0:00:06]} Kf5 {[%emt 0:00:06]} 76. Ke3 {[%emt 0:00:00]} Kf6 {[%emt 0:00:13]} 77. Bg2 {[%emt 0:00:01]} Ke6 {[%emt 0:00:17]} 78. Bh3+ {[%emt 0:00:05]} Kd5 {[%emt 0:00:03]} 79. Bg2+ {[%emt 0:00:02]} Ke6 {[%emt 0:00:01]} 80. Bc6 {[%emt 0:00:04]} Nf5+ {[%emt 0:00:25]} 81. Ke4 {[%emt 0:00:01]} Nd6+ {[%emt 0:00:06]} 82. Kf4 {[%emt 0:00:01]} Nc8 {[%emt 0:00:15]} 83. Bb5 {[%emt 0:00:10]} Kd5 {[%emt 0:00:06]} 84. Ke3 {[%emt 0:00:01]} Nd6 {[%emt 0:00:03]} 85. Bd3 {[%emt 0:00:02]} Ke6 {[%emt 0:00:08]} 86. Bc4+ {[%emt 0:00:06]} Kf5 {[%emt 0:00:18]} 87. Kf3 {[%emt 0:00:01]} Ne8 {[%emt 0:00:14]} 88. Bd3+ {[%emt 0:00:05]} Ke6 {[%emt 0:00:02]} 89. Ke3 {[%emt 0:00:05]} Nd6 {[%emt 0:00:02]} 90. Bf1 {[%emt 0:00:01]} Nf5+ {[%emt 0:00:08]} 91. Kd3 {[%emt 0:00:02]} Nd6 {[%emt 0:00:01]} 92. Bh3+ {[%emt 0:00:04]} Kf6 {[%emt 0:00:01]} 93. Bd7 {[%emt 0:00:03]} Ke7 {[%emt 0:00:04]} 94. Bc6 {[%emt 0:00:02]} Ke6 {[%emt 0:00:01]} 95. Bb5 {[%emt 0:00:04]} Kf6 {[%emt 0:00:22]} 96. Ke3 {[%emt 0:00:03]} Ke6 {[%emt 0:00:04]} 97. Bc4+ {[%emt 0:00:05]} Kf5 {[%emt 0:00:03]} 98. Bd5 {[%emt 0:00:01]} Kf6 {[%emt 0:00:02]} 99. Be4 {[%emt 0:00:04]} Ke6 {[%emt 0:00:04]} 100. Kf4 {[%emt 0:00:01]} Kf6 {[%emt 0:00:25]} (100... b5 $14) 101. Bg2 {[%emt 0:00:06]} ({White should try} 101. Bd3 $16) 101... Ke6 {[%emt 0:00:03]} 102. Bf3 {[%emt 0:00:01]} Kf6 {[%emt 0:00:06]} (102... b5 $14) 103. Bg4 {[%emt 0:00:02]} (103. Be2 $16) 103... b5 $1 $14 {[%emt 0:00:17]} 104. axb5 {[%emt 0:00:03]} Nxb5 {[%emt 0:00:02]} 105. Ke4 {[%emt 0:00:01]} (105. Ke3 $1 $14) 105... a4 $11 {[%emt 0:00:04]} 106. bxa4 {[%emt 0:00:07]} Nc3+ {[%emt 0:00:01]} 107. Kd3 {[%emt 0:00:00]} Nxa4 {[%emt 0:00:00]} 108. Kc4 {[%emt 0:00:01]} Ke7 {[%emt 0:00:06]} 109. d5 {[%emt 0:00:00]} Nb6+ {[%emt 0:00:03]} 110. Kb3 {[%emt 0:00:00]} Nxd5 {[%emt 0:00:01]} 1/2-1/2

[Event "AI Cup Div-3 2023"]
[Site "Online"]
[Date "2023.09.25"]
[Round "1.2"]
[White "Vokhidov, Shamsiddin"]
[Black "Vaibhav, Suri"]
[Result "0-1"]
[Annotator "ChessBase"]
[ECO "C65"]
[WhiteElo "2578"]
[BlackElo "2588"]
[PlyCount "78"]
[EventDate "2023.09.18"]
[EventType "k.o."]
[EventCountry "NET"]
[SourceTitle "playchess.com"]
[Source "ChessBase"]
[SourceQuality "1"]
[TimeControl "900+3"]

1. e4 {[%emt 0:00:03]} e5 {[%emt 0:00:04]} 2. Nf3 {[%emt 0:00:02]} Nc6 {[%emt 0:00:01]} 3. Bb5 {[%emt 0:00:02]} Nf6 {[%emt 0:00:00]} 4. d3 {[%emt 0:00:02]} Bc5 {[%emt 0:00:02]} 5. Bg5 {[%emt 0:00:02]} h6 {[%emt 0:00:02]} 6. Bh4 {[%emt 0:00:00]} Ne7 {[%emt 0:00:00]} 7. d4 {[%emt 0:00:05]} exd4 {[%emt 0:00:05]} 8. Bxf6 {[%emt 0:00:05]} gxf6 {[%emt 0:00:02]} 9. O-O {[%emt 0:00:01]} c6 {[%emt 0:00:25]} 10. Bc4 {[%emt 0:00:02]} Rg8 {[%emt 0:00:35]} 11. Re1 {[%emt 0:00:08]} d6 {[%emt 0:03:29]} 12. Nbd2 {[%emt 0:00:28]} Ng6 {[%emt 0:01:40]} 13. Bf1 {[%emt 0:01:27]} Bg4 {[%emt 0:00:44]} 14. h3 {[%emt 0:00:23]} Bh5 {[%emt 0:02:43]} 15. g4 {[%emt 0:00:54]} Nf4 {[%emt 0:00:02]} 16. Nh4 {[%emt 0:00:28]} Bg6 {[%emt 0:01:41]} 17. Qf3 {[%emt 0:02:14]} Ne6 {[%emt 0:00:03]} 18. Bc4 {[%emt 0:00:24]} Ng5 {[%emt 0:00:49]} 19. Qg3 {[%emt 0:00:02]} Bh7 {[%emt 0:01:13]} 20. Nb3 {[%emt 0:00:53]} h5 {[%emt 0:00:46]} 21. Nxc5 {[%emt 0:00:26]} dxc5 {[%emt 0:00:02]} 22. e5 {[%emt 0:00:00]} Kf8 {[%emt 0:00:35]} 23. e6 {[%emt 0:00:07]} fxe6 {[%emt 0:00:12]} 24. Bxe6 {[%emt 0:00:03]} Rg7 {[%emt 0:00:19]} 25. Bf5 {[%emt 0:00:17]} hxg4 {[%emt 0:00:01]} 26. hxg4 {[%emt 0:00:05]} Qd5 {[%emt 0:00:05]} 27. c4 {[%emt 0:00:10]} dxc3 {[%emt 0:00:31]} 28. Rad1 {[%emt 0:00:13]} Qc4 {[%emt 0:00:02]} 29. Qd6+ {[%emt 0:00:20]} Kg8 {[%emt 0:00:01]} 30. Qxf6 {[%emt 0:00:03]} Bxf5 {[%emt 0:00:02]} 31. Qxf5 {[%emt 0:00:41]} Rf8 {[%emt 0:00:02]} 32. b3 {[%emt 0:00:07]} Qb4 {[%emt 0:00:04]} 33. a3 {[%emt 0:00:05]} Rxf5 {[%emt 0:00:05]} 34. axb4 {[%emt 0:00:02]} Rf4 {[%emt 0:00:01]} 35. Kf1 {[%emt 0:00:12]} c2 {[%emt 0:00:03]} 36. Rd8+ {[%emt 0:00:14]} Kh7 {[%emt 0:00:04]} 37. bxc5 {[%emt 0:00:04]} Nh3 {[%emt 0:00:03]} 38. f3 {[%emt 0:00:36]} Rgxg4 {[%emt 0:00:01]} 39. Rd7+ {[%emt 0:00:05]} Rg7 {[%emt 0:00:02]} 0-1

[Event "AI Cup Div-3 2023"]
[Site "Online"]
[Date "2023.09.25"]
[Round "1.2"]
[White "Alekseev, Evgeny"]
[Black "Beerdsen, Thomas"]
[Result "1/2-1/2"]
[Annotator "ChessBase"]
[ECO "B49"]
[WhiteElo "2573"]
[BlackElo "2511"]
[PlyCount "83"]
[EventDate "2023.09.18"]
[EventType "k.o."]
[EventCountry "NET"]
[SourceTitle "playchess.com"]
[Source "ChessBase"]
[SourceQuality "1"]
[TimeControl "900+3"]

1. e4 {[%emt 0:00:08]} c5 {[%emt 0:00:05]} 2. Nf3 {[%emt 0:00:03]} e6 {[%emt 0:00:02]} 3. d4 {[%emt 0:00:08]} cxd4 {[%emt 0:00:01]} 4. Nxd4 {[%emt 0:00:01]} Nc6 {[%emt 0:00:02]} 5. Nc3 {[%emt 0:00:02]} Qc7 {[%emt 0:00:01]} 6. Be2 {[%emt 0:00:28]} a6 {[%emt 0:00:05]} 7. O-O {[%emt 0:00:13]} Nf6 {[%emt 0:00:08]} 8. Be3 {[%emt 0:00:09]} h5 {[%emt 0:00:06]} 9. h3 {[%emt 0:00:19]} Ne5 {[%emt 0:00:23]} 10. f4 {[%emt 0:00:29]} Nc4 {[%emt 0:00:06]} 11. Bxc4 {[%emt 0:00:04]} Qxc4 {[%emt 0:00:00]} 12. Qd3 {[%emt 0:00:13]} d5 {[%emt 0:02:20]} 13. Qxc4 {[%emt 0:02:45]} dxc4 {[%emt 0:00:03]} 14. e5 {[%emt 0:00:02]} Nd7 {[%emt 0:00:12]} 15. Ne4 {[%emt 0:00:23]} b5 {[%emt 0:00:36]} 16. a4 {[%emt 0:00:45]} Bb7 {[%emt 0:00:29]} 17. Nd2 {[%emt 0:00:06]} Bc5 {[%emt 0:00:42]} 18. axb5 {[%emt 0:00:53]} axb5 {[%emt 0:00:14]} 19. Rxa8+ {[%emt 0:00:04]} Bxa8 {[%emt 0:00:03]} 20. Kf2 {[%emt 0:00:31]} O-O {[%emt 0:01:13]} 21. Ra1 {[%emt 0:00:05]} Nb6 {[%emt 0:01:28]} 22. Nf5 {[%emt 0:01:44]} Bxe3+ {[%emt 0:00:18]} 23. Nxe3 {[%emt 0:00:01]} Rd8 {[%emt 0:00:08]} 24. Nf3 {[%emt 0:00:20]} Be4 {[%emt 0:00:27]} 25. Ra6 {[%emt 0:01:49]} Na4 {[%emt 0:00:23]} 26. Nxc4 {[%emt 0:00:33]} Bxc2 {[%emt 0:00:54]} 27. Nd6 {[%emt 0:00:18]} Nxb2 {[%emt 0:03:11]} 28. Nxb5 {[%emt 0:00:24]} Bd3 {[%emt 0:00:05]} 29. Rd6 {[%emt 0:00:20]} Rb8 {[%emt 0:00:02]} 30. Nbd4 {[%emt 0:00:14]} Nc4 {[%emt 0:00:02]} 31. Rd7 {[%emt 0:00:14]} Rb2+ {[%emt 0:00:05]} 32. Kg3 {[%emt 0:00:19]} Bf1 {[%emt 0:00:33]} 33. Ng5 {[%emt 0:01:04]} Rxg2+ {[%emt 0:00:10]} 34. Kh4 {[%emt 0:00:25]} g6 {[%emt 0:00:16]} 35. Ne4 {[%emt 0:00:05]} Ne3 {[%emt 0:01:00]} 36. Nf6+ {[%emt 0:00:15]} Kg7 {[%emt 0:00:02]} 37. Rd8 {[%emt 0:00:08]} Rd2 {[%emt 0:00:49]} 38. Rg8+ {[%emt 0:00:11]} Kh6 {[%emt 0:00:01]} 39. Rh8+ {[%emt 0:00:05]} Kg7 {[%emt 0:00:02]} 40. Rg8+ {[%emt 0:00:05]} Kh6 {[%emt 0:00:01]} 41. Rh8+ {[%emt 0:00:02]} Kg7 {[%emt 0:00:01]} 42. Rg8+ {[%emt 0:00:04]} 1/2-1/2

[Event "AI Cup Div-3 2023"]
[Site "Online"]
[Date "2023.09.25"]
[Round "1.2"]
[White "Asadli, Vugar"]
[Black "Kramnik, Vladimir"]
[Result "0-1"]
[Annotator "TA"]
[ECO "B33"]
[WhiteElo "2563"]
[BlackElo "2753"]
[PlyCount "62"]
[EventDate "2023.09.18"]
[EventType "k.o."]
[EventCountry "NET"]
[SourceTitle "playchess.com"]
[Source "ChessBase"]
[SourceQuality "1"]
[TimeControl "900+3"]

{[%evp 26,62,17,22,16,23,17,17,27,15,21,30,40,36,39,0,0,0,0,0,0,0,0,-6,0,-36,-44,-86,-47,-153,-27,-244,-229,-408,-397,-1420,-1311,-29981,-29982]} 1. e4 {[%emt 0:00:03]} c5 {[%emt 0:00:05]} 2. Nf3 {[%emt 0:00:02]} e6 {[%emt 0:00:01]} 3. d4 {[%emt 0:00:13]} cxd4 {[%emt 0:00:01]} 4. Nxd4 {[%emt 0:00:00]} Nf6 {[%emt 0:00:01]} 5. Nc3 {[%emt 0:00:01]} Nc6 {[%emt 0:00:01]} 6. Ndb5 {[%emt 0:00:15]} d6 {[%emt 0:00:04]} 7. Bf4 {[%emt 0:00:05]} e5 {[%emt 0:00:01]} 8. Bg5 {[%emt 0:00:03]} a6 {[%emt 0:00:00]} 9. Na3 {[%emt 0:00:05]} b5 {[%emt 0:00:01]} 10. Nd5 {[%emt 0:00:02]} Be7 {[%emt 0:00:01]} 11. Bxf6 {[%emt 0:00:01]} Bxf6 {[%emt 0:00:00]} 12. c3 {[%emt 0:00:01][%cal Bc2c3,Bc3b4][%mdl 32]} Rb8 {[%emt 0:00:02]} 13. Nc2 {[%emt 0:00:04]} Bg5 {[%emt 0:00:01]} 14. a4 {[%emt 0:00:28]} bxa4 {[%emt 0:00:02] B33: Sicilian: Pelikan and Sveshnikov Variations.} 15. Ncb4 {[%emt 0:00:02]} Nxb4 {[%emt 0:00:02]} 16. cxb4 {[%emt 0:00:05]} O-O {[%emt 0:00:02] The position is equal.} 17. Rxa4 {[%emt 0:00:27]} a5 {[%emt 0:00:01]} 18. b5 {[%emt 0:00:34]} (18. Rxa5 $2 Rxb4 19. Ra4 Rxb2 $19) (18. bxa5 Rxb2 19. Qa1 Rc2 $17) 18... Bd7 {[%emt 0:00:01]} 19. Nc3 {[%emt 0:01:26][%cal Of1c4]} d5 {[%emt 0:00:04][%mdl 64] [#] Deflection} 20. Nxd5 {[%emt 0:00:26]} (20. exd5 $5 e4 21. Bc4 $11 (21. Rxe4 f5 $14) (21. Nxe4 Rc8 $17)) 20... Bxb5 $1 {[%emt 0:00:03][%mdl 4] is recently more successful than 20...Be7.} 21. Bxb5 {[%emt 0:00:01]} Rxb5 {[%emt 0:00:00]} 22. O-O {[%emt 0:00:01]} Qb8 {[%emt 0:00:10]} 23. Qa1 {[%emt 0:00:16]} Bd8 {[%emt 0:00:07][%cal Bg5d8,Bd8b6,Bb6d4][%mdl 32] [#]} 24. Ra2 $146 {[%emt 0:00:38]} ({Predecessor:} 24. Rb1 Bb6 25. b4 Bd4 26. Qa2 axb4 27. Raxb4 Rxb4 28. Rxb4 Qa8 29. Ra4 Qd8 30. g3 {½-½ Tarhan,A (2388)-Ohanyan,E (2500) Abu Dhabi op 29th 2023 (7)}) 24... Bb6 {[%emt 0:00:44]} 25. Qc1 {[%emt 0:00:30]} Bd4 {[%emt 0:00:56][%cal Rb5b2]} 26. Qg5 {[%emt 0:00:04]} Kh8 {[%emt 0:00:51]} 27. Ra3 {[%emt 0:00:06]} ({Better is} 27. Qd2 $15) 27... h6 {[%emt 0:01:09]} ({Black should try} 27... f6 $17 28. Qh5 Qb7) 28. Qg4 {[%emt 0:01:13] This costs White the game.} (28. Rg3 $11 {and White has nothing to worry.} Rg8 29. Rh3) 28... f5 $19 {[%emt 0:04:44]} (28... Bxb2 29. Rg3 Rg8 30. Ne7 $14) 29. Qh4 {[%emt 0:01:51]} (29. Qg6 {was forced.} fxe4 30. Rh3 (30. Rg3 $2 Qb7 $19)) 29... fxe4 {[%emt 0:01:23]} (29... Rxb2 $2 {is the wrong capture.} 30. h3 $19) (29... Bxb2 $2 {loses.} 30. Rf3 $19) 30. Ne7 $2 {[%emt 0:00:06] [#]} (30. Qxe4 Rxb2 31. Rf3 Rxf3 32. gxf3) 30... Rxf2 $1 {[%emt 0:00:34][%mdl 512]} 31. Rxf2 {[%emt 0:01:19]} (31. Qxf2 Qb6) 31... Rxb2 {[%emt 0:00:03][%mdl 64] Pin.   Weighted Error Value: White=1.02/Black=0.15 (very precise)} 0-1